bitfinex/quotes_BTCUSD_20241215
["timestamp","ask_amount","ask_price","bid_price","bid_amount"]
[1734268838226,8e-07,102560.0,102550.0,2.0252515]
[1734268839812,8e-07,102560.0,102550.0,2.06208033]
[1734268840622,8e-07,102560.0,102550.0,2.08208033]
[1734268840986,0.0001724,102580.0,102570.0,0.9111992]
[1734268841431,0.1261724,102580.0,102570.0,0.9784872]
[1734268841600,0.0802,102570.0,102560.0,0.244992]
[1734268841845,0.17925403,102570.0,102560.0,0.294992]
[1734268843226,0.17925403,102570.0,102560.0,0.444992]
[1734268848492,0.18921387,102570.0,102560.0,0.444992]
[1734268849258,0.18921387,102570.0,102560.0,0.294992]
[1734268849454,0.18938627,102570.0,102560.0,0.294992]
[1734268850743,0.126,102560.0,102550.0,1.1235332]
[1734268850947,0.22505403,102560.0,102550.0,0.440034]
[1734268851354,0.22505403,102560.0,102550.0,0.490034]
[1734268852794,0.22505403,102560.0,102550.0,0.440034]
[1734268852995,0.22505403,102560.0,102550.0,0.490034]
[1734268853423,0.17925403,102560.0,102550.0,0.490034]
[1734268855504,0.17925403,102560.0,102550.0,0.97855504]
[1734268857176,0.17925403,102560.0,102550.0,0.92855504]
[1734268857409,0.17925403,102560.0,102550.0,0.97855504]
[1734268859283,0.17925403,102560.0,102550.0,0.92855504]
[1734268859490,0.17925403,102560.0,102550.0,0.97855504]
[1734268861282,0.17925403,102560.0,102550.0,0.97864124]
[1734268861688,0.09905403,102560.0,102550.0,0.97864124]
[1734268862875,0.18065403,102560.0,102550.0,0.97864124]
[1734268863348,0.18065403,102560.0,102550.0,0.48860724]
[1734268863553,0.22605403,102560.0,102550.0,0.49295451]
[1734268864076,0.42106103,102560.0,102550.0,0.49295451]
[1734268864476,0.42106103,102560.0,102550.0,0.56177035]
[1734268865877,0.42106103,102560.0,102550.0,0.49295451]
[1734268868821,0.22605403,102560.0,102550.0,0.49295451]
[1734268869236,0.42106103,102560.0,102550.0,0.49295451]
[1734268872707,0.42123343,102560.0,102550.0,0.49295451]
[1734268875846,0.42123343,102560.0,102550.0,0.68798051]
[1734268875847,0.22622643,102560.0,102550.0,0.68798051]
[1734268876271,0.18082643,102560.0,102550.0,0.68798051]
[1734268878182,0.09922643,102560.0,102550.0,0.68798051]
[1734268879481,0.09922643,102560.0,102550.0,0.73798051]
[1734268880354,0.09922643,102560.0,102550.0,0.91308051]
[1734268880783,0.0001724,102560.0,102550.0,0.91308051]
[1734268880994,0.0001724,102560.0,102550.0,1.59657971]
[1734268881620,0.0001724,102560.0,102550.0,1.61956203]
[1734268882252,0.0001724,102560.0,102550.0,1.62179036]
[1734268882458,0.0001724,102560.0,102550.0,1.59880804]
[1734268883308,0.0001724,102560.0,102550.0,1.68519696]
[1734268883973,0.0001724,102560.0,102550.0,1.83926267]
[1734268884179,4e-07,102560.0,102550.0,2.2302219]
[1734268884384,4e-07,102560.0,102550.0,2.19985353]
[1734268885026,4e-07,102560.0,102550.0,2.54373778]
[1734268885258,4e-07,102560.0,102550.0,2.762065]
[1734268885439,4e-07,102560.0,102550.0,2.70792363]
[1734268885893,4e-07,102560.0,102550.0,2.60384654]
[1734268886066,4e-07,102560.0,102550.0,2.62366038]
[1734268886276,4e-07,102560.0,102550.0,2.44899861]
[1734268886514,4e-07,102560.0,102550.0,3.14269456]
[1734268887356,4e-07,102560.0,102550.0,3.14269011]
[1734268887825,8e-07,102570.0,102560.0,0.4251]
[1734268888031,8e-07,102570.0,102560.0,1.14408081]
[1734268888239,8e-07,102570.0,102560.0,1.48512349]
[1734268888445,8e-07,102570.0,102560.0,1.45753479]
[1734268889084,8e-07,102570.0,102560.0,1.99103399]
[1734268889294,8e-07,102570.0,102560.0,2.07828871]
[1734268889735,8e-07,102570.0,102560.0,2.25034274]
[1734268889944,2e-07,102580.0,102570.0,1.0085992]
[1734268890122,2e-07,102580.0,102570.0,1.29084076]
[1734268890577,2e-07,102580.0,102570.0,1.29737203]
[1734268891401,2e-07,102580.0,102570.0,1.21011847]
[1734268892379,2e-07,102580.0,102570.0,1.23310079]
[1734268892877,2e-07,102580.0,102570.0,1.46036035]
[1734268893077,8e-07,102590.0,102580.0,0.425]
[1734268893288,8e-07,102590.0,102580.0,0.44798232]
[1734268893494,8e-07,102590.0,102580.0,0.64295132]
[1734268894031,8e-07,102590.0,102580.0,0.619969]
[1734268894239,5.567e-05,102590.0,102580.0,0.619969]
[1734268898183,5.567e-05,102590.0,102580.0,1.1534682]
[1734268898390,5.567e-05,102590.0,102580.0,1.16340135]
[1734268898813,5.567e-05,102590.0,102580.0,1.18284968]
[1734268905542,6.7e-07,102590.0,102580.0,1.18284968]
[1734268905748,6.7e-07,102590.0,102580.0,1.40169603]
[1734268906556,0.0773,102620.0,102610.0,0.294912]
[1734268906726,0.17690301,102620.0,102610.0,0.444912]
[1734268908032,0.17698911,102620.0,102610.0,0.444912]
[1734268908619,0.00063508,102620.0,102610.0,0.444912]
[1734268908848,0.00063508,102620.0,102610.0,0.97841053]
[1734268911523,0.09968911,102620.0,102610.0,0.97841053]
[1734268911879,0.18008911,102620.0,102610.0,0.92841053]
[1734268912031,0.18008911,102620.0,102610.0,0.97841053]
[1734268912599,0.22858911,102620.0,102610.0,0.53349853]
[1734268912804,0.0804,102610.0,102600.0,0.194916]
[1734268913013,0.0804,102600.0,102590.0,0.439869]
[1734268913219,0.17945403,102600.0,102590.0,0.439869]
[1734268917591,0.17992805,102600.0,102590.0,0.439869]
[1734268918446,0.18963667,102600.0,102590.0,0.439869]
[1734268919809,0.10876265,102600.0,102590.0,0.63939498]
[1734268920643,0.09905403,102600.0,102590.0,0.63939498]
[1734268921050,0.09905403,102600.0,102590.0,0.63956718]
[1734268921251,0.09905403,102600.0,102590.0,0.64599505]
[1734268922173,0.09905403,102600.0,102590.0,1.17949358]
[1734268922689,0.09905403,102600.0,102590.0,1.17767067]
[1734268922897,0.08699396,102610.0,102600.0,0.25]
[1734268923119,0.18604799,102610.0,102600.0,0.444931]
[1734268923339,0.10874799,102610.0,102600.0,0.444931]
[1734268923541,0.10874799,102610.0,102600.0,0.44953596]
[1734268924320,0.13113508,102620.0,102610.0,0.05]
[1734268924519,0.18178911,102620.0,102610.0,0.10097439]
[1734268924748,0.09968911,102620.0,102610.0,0.83393672]
[1734268924949,0.09968911,102620.0,102610.0,0.83296233]
[1734268925561,0.10931755,102620.0,102610.0,0.83296233]
[1734268927495,0.10931755,102620.0,102610.0,0.98296233]
[1734268931496,0.09968911,102620.0,102610.0,0.98296233]
[1734268935898,0.00063508,102620.0,102610.0,0.98296233]
[1734268941212,0.09968911,102620.0,102610.0,0.98296233]
[1734268948447,0.00063508,102620.0,102610.0,0.98296233]
[1734268948740,0.00063508,102620.0,102610.0,1.00755282]
[1734268950102,0.00063508,102620.0,102610.0,0.98296233]
[1734268953396,0.08213508,102620.0,102610.0,0.98296233]
[1734268953694,0.18118911,102620.0,102610.0,0.98296233]
[1734268957819,0.09968911,102620.0,102610.0,0.98296233]
[1734268959586,0.00063508,102620.0,102610.0,1.05916233]
[1734268960518,0.09968911,102620.0,102610.0,0.98296233]
[1734268963412,0.09968911,102620.0,102610.0,0.98496233]
[1734268965571,0.09968911,102620.0,102610.0,1.07229658]
[1734268967345,0.09968911,102620.0,102610.0,1.50384424]
[1734268969154,0.09968911,102620.0,102610.0,1.67851275]
[1734268970345,0.22628911,102620.0,102610.0,1.47964666]
[1734268970560,0.22628911,102620.0,102610.0,0.2014638]
[1734268970755,0.31336323,102620.0,102610.0,0.2014638]
[1734268970959,0.44397442,102620.0,102610.0,0.2014638]
[1734268971164,0.44397442,102620.0,102610.0,0.0065518]
[1734268971538,0.63886742,102620.0,102610.0,0.0065518]
[1734268971745,0.81301568,102620.0,102610.0,0.0065518]
[1734268971958,0.68240449,102620.0,102610.0,0.0065518]
[1734268972165,0.321512,102610.0,102600.0,0.48752104]
[1734268972367,0.95886108,102610.0,102600.0,0.48752104]
[1734268972575,0.70478841,102610.0,102600.0,0.48752104]
[1734268973351,0.83442468,102610.0,102600.0,0.48752104]
[1734268973552,0.83442255,102610.0,102600.0,0.48752104]
[1734268974092,1.05152168,102610.0,102600.0,0.48752104]
[1734268974949,0.96471177,102610.0,102600.0,0.48752104]
[1734268975213,1.05147943,102610.0,102600.0,0.48752104]
[1734268975422,0.83433852,102610.0,102600.0,0.48752104]
[1734268976190,0.66062291,102610.0,102600.0,0.48752104]
[1734268977007,0.66062291,102610.0,102600.0,0.73122136]
[1734268977008,0.44271091,102610.0,102600.0,0.73122136]
[1734268977369,0.22565403,102610.0,102600.0,0.73122136]
[1734268978150,0.17635403,102610.0,102600.0,0.73122136]
[1734268978661,0.01044587,102620.0,102600.0,1.10542136]
[1734268978863,0.1094999,102620.0,102610.0,0.25097442]
[1734268979094,0.1094999,102620.0,102610.0,0.49943351]
[1734268982802,0.1094999,102620.0,102610.0,0.444912]
[1734268983269,0.1094999,102620.0,102610.0,0.194912]
[1734268983496,0.1902999,102620.0,102610.0,0.194912]
[1734268983721,0.1902999,102620.0,102600.0,1.41085557]
[1734268983921,0.09905403,102610.0,102600.0,1.56085557]
[1734268984138,0.09905403,102610.0,102600.0,1.21593557]
[1734268985172,0.09905403,102610.0,102600.0,0.68243704]
[1734268986000,0.09905403,102610.0,102600.0,0.73243704]
[1734268986207,0.09905403,102610.0,102600.0,0.93243704]
[1734268986417,0.09905403,102610.0,102600.0,0.83243704]
[1734268986843,0.09905403,102610.0,102600.0,0.73243704]
[1734268989642,0.09905403,102610.0,102600.0,0.78243704]
[1734268990731,0.09905403,102610.0,102600.0,0.93243704]
[1734268990933,0.09905403,102610.0,102600.0,0.98083704]
[1734268991356,0.09905403,102610.0,102600.0,1.51433557]
[1734268992400,0.01044587,102620.0,102610.0,0.444912]
[1734268992605,0.1094999,102620.0,102610.0,0.444912]
[1734268992937,0.1094999,102620.0,102610.0,0.523912]
[1734268993148,0.01044587,102620.0,102610.0,1.05741053]
[1734268994903,0.01044587,102620.0,102610.0,1.13332687]
[1734268995325,0.01044587,102620.0,102610.0,1.10451053]
[1734268995980,0.01044587,102620.0,102610.0,1.20632687]
[1734268995981,0.00063508,102620.0,102610.0,1.20632687]
[1734268997246,8e-08,102620.0,102610.0,1.3053809]
[1734268997451,8e-08,102620.0,102610.0,1.47025692]
[1734268997655,8e-08,102620.0,102610.0,1.60105605]
[1734268997858,8e-08,102620.0,102610.0,2.06833003]
[1734268998284,8e-08,102620.0,102610.0,1.89393119]
[1734268998492,8e-08,102620.0,102610.0,2.06833003]
[1734268998895,8e-08,102620.0,102610.0,1.86625459]
[1734268999101,8e-08,102620.0,102610.0,2.28890797]
[1734268999309,8e-08,102620.0,102610.0,2.28884976]
[1734268999870,8e-08,102620.0,102610.0,2.20170855]
[1734269000069,0.0001724,102640.0,102630.0,0.3953]
[1734269000271,0.00033703,102640.0,102630.0,0.3953]
[1734269000473,0.00033703,102640.0,102630.0,0.590174]
[1734269002928,0.09939106,102640.0,102630.0,0.444874]
[1734269003189,0.09939106,102640.0,102630.0,0.394874]
[1734269003388,0.09939106,102640.0,102630.0,0.92837253]
[1734269003605,0.17769106,102640.0,102630.0,0.97837253]
[1734269004021,0.17769106,102640.0,102630.0,0.92837253]
[1734269004444,0.17769106,102640.0,102630.0,0.97837253]
[1734269004654,0.17769106,102640.0,102630.0,0.87837253]
[1734269005071,0.17769106,102640.0,102630.0,0.77837253]
[1734269005273,0.17769106,102640.0,102630.0,0.72837253]
[1734269006338,0.17769106,102640.0,102630.0,0.194874]
[1734269009157,0.17769106,102640.0,102620.0,0.389763]
[1734269009361,0.09905403,102630.0,102620.0,0.194878]
[1734269009562,0.17735403,102630.0,102620.0,0.194878]
[1734269010314,0.17735403,102630.0,102610.0,1.31837673]
[1734269010452,0.22655403,102630.0,102610.0,1.26837673]
[1734269012067,0.61630503,102630.0,102610.0,0.72856773]
[1734269012680,0.61639113,102630.0,102610.0,0.72856773]
[1734269012878,0.09905403,102620.0,102610.0,0.0001722]
[1734269013760,0.37024703,102620.0,102610.0,0.0001722]
[1734269014590,0.194912,102610.0,102600.0,0.48752104]
[1734269014795,0.37026603,102610.0,102600.0,0.48752104]
[1734269018487,0.37026603,102610.0,102600.0,0.57528006]
[1734269018705,0.17535403,102610.0,102600.0,0.57528006]
[1734269019313,0.17535403,102610.0,102600.0,0.48752104]
[1734269020935,0.37026603,102610.0,102600.0,0.48752104]
[1734269021702,0.17535403,102610.0,102600.0,0.48752104]
[1734269021945,0.17535403,102610.0,102600.0,0.68245204]
[1734269022194,0.17535403,102610.0,102600.0,0.48752104]
[1734269022684,0.37026603,102610.0,102600.0,0.48752104]
[1734269024010,0.55838122,102610.0,102600.0,0.48752104]
[1734269024212,0.56906603,102610.0,102600.0,0.48345812]
[1734269026993,0.56906603,102610.0,102600.0,0.33848174]
[1734269027808,0.56906603,102610.0,102600.0,0.1676213]
[1734269028447,0.56906603,102610.0,102600.0,0.10582057]
[1734269028650,0.69112006,102610.0,102600.0,0.00356997]
[1734269028851,0.59206603,102610.0,102600.0,0.00356997]
[1734269029056,0.67850196,102610.0,102600.0,0.00356997]
[1734269029263,0.59206603,102610.0,102600.0,0.00356997]
[1734269029471,0.67850196,102610.0,102600.0,0.00356997]
[1734269029679,0.80815586,102610.0,102600.0,0.00356997]
[1734269029884,0.349431,102600.0,102590.0,0.0001722]
[1734269030093,0.44848503,102600.0,102590.0,0.0001722]
[1734269030709,0.59848503,102600.0,102590.0,0.0001722]
[1734269030927,0.59848503,102600.0,102570.0,0.0001722]
[1734269030928,0.194969,102580.0,102570.0,0.0001722]
[1734269031136,0.37672303,102580.0,102570.0,0.00072118]
[1734269038193,0.38647347,102580.0,102570.0,0.00072118]
[1734269039744,0.10880447,102580.0,102570.0,0.19570918]
[1734269039940,0.10880447,102580.0,102570.0,0.40457639]
[1734269040513,0.10880447,102580.0,102570.0,0.32140918]
[1734269042135,0.10880447,102580.0,102570.0,0.37140918]
[1734269044717,0.09905403,102580.0,102570.0,0.59649461]
[1734269045421,0.05,102600.0,102590.0,0.05]
[1734269045630,0.14905403,102600.0,102590.0,0.36605]
[1734269045833,0.14905403,102600.0,102590.0,0.44174387]
[1734269051582,0.14905403,102600.0,102590.0,0.36605]
[1734269051793,0.14905403,102600.0,102590.0,0.24055]
[1734269051997,0.14905403,102600.0,102580.0,1.04891253]
[1734269051998,0.42509503,102600.0,102580.0,0.92341353]
[1734269052212,0.09905403,102590.0,102580.0,0.92341353]
[1734269053041,0.09905403,102590.0,102580.0,0.72845253]
[1734269054107,0.29400403,102590.0,102580.0,0.53349853]
[1734269054319,0.48896603,102590.0,102570.0,0.19569618]
[1734269054523,0.48896603,102590.0,102570.0,0.4281148]
[1734269054747,0.29400403,102590.0,102570.0,0.6230938]
[1734269054955,0.48896303,102590.0,102570.0,0.4281148]
[1734269055200,0.56636703,102590.0,102570.0,0.19569618]
[1734269055408,0.29402303,102580.0,102570.0,0.00072118]
[1734269058709,0.09905403,102580.0,102570.0,0.19570918]
[1734269058941,0.29402303,102580.0,102570.0,0.00072118]
[1734269059738,0.09905403,102580.0,102570.0,0.29360918]
[1734269059944,0.09905403,102580.0,102570.0,0.53908969]
[1734269060144,0.09905403,102580.0,102570.0,0.68908969]
[1734269060344,0.09905403,102580.0,102570.0,1.22258822]
[1734269060546,0.09905403,102580.0,102570.0,1.18703683]
[1734269065804,0.09905403,102580.0,102570.0,1.20689716]
[1734269072588,0.09905403,102580.0,102570.0,1.06043683]
[1734269075241,0.09905403,102580.0,102570.0,0.5269383]
[1734269077067,0.09905403,102580.0,102570.0,0.6026383]
[1734269078340,0.09905403,102580.0,102570.0,1.13613683]
[1734269078751,0.09905403,102580.0,102570.0,1.18183683]
[1734269085859,0.00991757,102590.0,102580.0,0.444969]
[1734269086011,0.1089716,102590.0,102580.0,0.46703071]
[1734269090346,0.1089716,102590.0,102580.0,1.00052924]
[1734269092125,0.09922643,102590.0,102580.0,1.00052924]
[1734269094767,0.09922643,102590.0,102580.0,1.02028682]
[1734269104620,0.0001724,102590.0,102580.0,1.19131032]
[1734269104825,0.0001724,102590.0,102580.0,1.94133498]
[1734269105042,0.0001724,102590.0,102580.0,2.16015473]
[1734269105347,0.0001724,102590.0,102580.0,2.00255252]
[1734269105688,0.09922643,102590.0,102580.0,1.76408469]
[1734269105815,0.09922643,102590.0,102580.0,1.58902889]
[1734269106235,0.09922643,102590.0,102580.0,1.76408469]
[1734269108337,0.09922643,102590.0,102580.0,1.58902889]
[1734269108767,0.0001724,102590.0,102580.0,1.58902889]
[1734269108957,0.0001724,102590.0,102580.0,1.84088469]
[1734269109120,0.0001724,102590.0,102580.0,1.86438469]
[1734269109319,0.0001724,102590.0,102580.0,1.89072439]
[1734269109752,0.0001724,102590.0,102580.0,2.12823982]
[1734269110159,0.0001724,102590.0,102580.0,2.05238258]
[1734269110364,0.0001724,102590.0,102580.0,2.05234598]
[1734269110655,0.0001724,102590.0,102580.0,1.94404154]
[1734269111365,0.0001724,102590.0,102580.0,2.07532143]
[1734269111589,0.0001724,102590.0,102580.0,1.94404154]
[1734269112304,0.0001724,102590.0,102580.0,1.42248452]
[1734269112538,0.0001724,102590.0,102580.0,2.07744842]
[1734269112767,0.0001724,102590.0,102580.0,1.94619211]
[1734269113416,0.0001724,102590.0,102580.0,2.07742813]
[1734269115203,0.0001724,102590.0,102580.0,2.08743208]
[1734269115839,4e-07,102590.0,102580.0,2.15266752]
[1734269116016,4e-07,102590.0,102580.0,2.25172155]
[1734269116286,4e-07,102590.0,102580.0,2.12048553]
[1734269119139,4e-07,102600.0,102590.0,0.56355]
[1734269119353,4e-07,102600.0,102590.0,1.15817827]
[1734269119581,4e-07,102600.0,102590.0,1.68190838]
[1734269119829,4e-07,102600.0,102590.0,2.22702282]
[1734269120038,4e-07,102600.0,102590.0,2.25738148]
[1734269120253,4e-07,102600.0,102590.0,2.1262243]
[1734269120461,4e-07,102600.0,102590.0,2.25731658]
[1734269120879,4e-07,102600.0,102590.0,2.31435434]
[1734269121503,4e-07,102600.0,102590.0,2.09556273]
[1734269122961,4e-07,102600.0,102590.0,2.2991189]
[1734269123446,4e-07,102600.0,102590.0,2.29908784]
[1734269124416,4e-07,102600.0,102590.0,2.08029623]
[1734269124659,4e-07,102600.0,102590.0,1.38202385]
[1734269124867,4e-07,102600.0,102590.0,2.29493751]
[1734269125525,4e-07,102600.0,102590.0,2.07654993]
[1734269126029,8e-07,102600.0,102590.0,2.07654993]
[1734269126487,0.08859184,102630.0,102620.0,0.244893]
[1734269126692,0.18764587,102630.0,102620.0,0.26695471]
[1734269127547,0.0787861,102630.0,102620.0,0.31695471]
[1734269127766,0.07889307,102630.0,102620.0,0.34344688]
[1734269129455,0.07889307,102630.0,102620.0,0.49344688]
[1734269132256,0.00019307,102630.0,102620.0,0.51247626]
[1734269132509,0.00019307,102630.0,102620.0,1.04597479]
[1734269132770,0.00019307,102630.0,102620.0,0.99597479]
[1734269133000,0.08259307,102630.0,102620.0,1.04597479]
[1734269133653,0.08259307,102630.0,102620.0,1.01948262]
[1734269134111,0.00019307,102630.0,102620.0,1.12397479]
[1734269134319,0.00019307,102630.0,102620.0,1.17117479]
[1734269134744,0.00019307,102630.0,102620.0,1.2260502]
[1734269135427,0.00019307,102630.0,102620.0,1.19417479]
[1734269135655,0.00019307,102630.0,102620.0,1.16768262]
[1734269137581,0.00019307,102630.0,102620.0,1.14468262]
[1734269137816,0.00019307,102630.0,102620.0,1.01948262]
[1734269139163,0.07759307,102630.0,102620.0,1.01948262]
[1734269143416,0.07759307,102630.0,102620.0,1.05476001]
[1734269145570,0.00019307,102630.0,102620.0,1.05476001]
[1734269145799,0.00019307,102630.0,102620.0,1.3899637]
[1734269147358,0.00019307,102630.0,102620.0,1.20886001]
[1734269149226,0.00019307,102630.0,102620.0,1.17358262]
[1734269151489,0.00019307,102630.0,102620.0,1.20665371]
[1734269152329,0.00019307,102630.0,102620.0,1.12365371]
[1734269152541,0.00019307,102630.0,102620.0,1.10065371]
[1734269152742,0.07579307,102630.0,102620.0,1.01948262]
[1734269152988,0.07579307,102630.0,102620.0,1.04846314]
[1734269154853,0.00019307,102630.0,102620.0,1.04846314]
[1734269156084,0.00019307,102630.0,102620.0,1.09806314]
[1734269156290,0.00019307,102630.0,102620.0,1.18528519]
[1734269156499,0.00019307,102630.0,102620.0,1.18537407]
[1734269159503,0.00019307,102630.0,102620.0,1.21573938]
[1734269160327,0.00019307,102630.0,102620.0,1.34670578]
[1734269160543,0.00019307,102630.0,102620.0,1.12842845]
[1734269160771,7e-08,102630.0,102620.0,1.69841122]
[1734269160983,7e-08,102630.0,102620.0,2.10337006]
[1734269161203,7e-08,102630.0,102620.0,2.01601766]
[1734269161414,7e-08,102630.0,102620.0,2.23439867]
[1734269161836,7e-08,102630.0,102620.0,2.10337007]
[1734269163586,7e-08,102630.0,102620.0,2.10171713]
[1734269163812,7e-08,102630.0,102620.0,2.06966747]
[1734269164022,0.07660007,102630.0,102620.0,0.93478897]
[1734269164243,0.07660007,102630.0,102620.0,0.84742091]
[1734269164448,0.07660007,102630.0,102620.0,0.82839153]
[1734269165129,0.1756541,102630.0,102620.0,0.244893]
[1734269165346,0.1756541,102630.0,102620.0,0.294893]
[1734269166226,0.18544056,102630.0,102620.0,0.294893]
[1734269166860,0.18544056,102630.0,102620.0,0.444893]
[1734269167065,0.1756541,102630.0,102620.0,0.444893]
[1734269168579,0.1756541,102630.0,102620.0,0.97839153]
[1734269169020,0.07660007,102630.0,102620.0,0.97839153]
[1734269169231,7e-08,102630.0,102620.0,1.0053324]
[1734269169660,7e-08,102630.0,102620.0,1.52235261]
[1734269170145,0.07177247,102650.0,102640.0,0.194855]
[1734269170344,0.1708265,102650.0,102640.0,0.2588264]
[1734269170548,0.18063638,102650.0,102640.0,0.2588264]
[1734269170959,0.18063638,102650.0,102640.0,0.33576727]
[1734269171594,0.18063638,102650.0,102640.0,0.3088264]
[1734269173267,0.0476724,102660.0,102650.0,0.05]
[1734269173474,0.22212643,102660.0,102650.0,0.29029348]
[1734269173680,0.17462643,102660.0,102650.0,0.48415543]
[1734269174126,0.17462643,102660.0,102650.0,0.43415543]
[1734269174353,0.1845558,102660.0,102650.0,0.48415543]
[1734269176881,0.0755724,102660.0,102650.0,0.43415543]
[1734269177092,0.0001724,102660.0,102650.0,0.48415543]
[1734269177508,0.0001724,102660.0,102650.0,1.01765396]
[1734269177878,0.17462643,102660.0,102650.0,0.72833453]
[1734269180497,0.26115026,102660.0,102650.0,0.72833453]
[1734269180699,0.26128524,102660.0,102650.0,0.194836]
[1734269182465,0.0754,102630.0,102620.0,0.19526247]
[1734269182671,0.22235403,102630.0,102620.0,0.19526247]
[1734269182880,0.16206918,102640.0,102630.0,0.05]
[1734269183083,0.17445403,102640.0,102630.0,0.244874]
[1734269183531,0.18433001,102640.0,102630.0,0.2450464]
[1734269183766,0.18433001,102640.0,102630.0,0.33574747]
[1734269188118,0.10893001,102640.0,102630.0,0.33574747]
[1734269189658,0.09905403,102640.0,102630.0,1.069246]
[1734269190449,0.09905403,102640.0,102630.0,1.09618687]
[1734269190909,0.09905403,102640.0,102630.0,1.14348687]
[1734269191640,0.09905403,102640.0,102630.0,1.116546]
[1734269193969,0.10993198,102650.0,102640.0,0.77835353]
[1734269194239,0.10993198,102650.0,102640.0,0.79094329]
[1734269195268,0.11001818,102650.0,102640.0,0.79094329]
[1734269195560,0.20907221,102650.0,102640.0,0.79094329]
[1734269198462,0.20907221,102650.0,102640.0,0.25744476]
[1734269200145,0.19914023,102650.0,102640.0,0.58634476]
[1734269200371,0.19914023,102650.0,102640.0,0.62161368]
[1734269201331,0.19914023,102650.0,102640.0,0.58634476]
[1734269201625,0.19914023,102650.0,102640.0,1.15511368]
[1734269202262,0.19914023,102650.0,102640.0,1.11984476]
[1734269203029,0.1000862,102650.0,102640.0,1.14243986]
[1734269203241,0.1000862,102650.0,102640.0,1.11984476]
[1734269203419,0.1000862,102650.0,102640.0,1.14243986]
[1734269203648,0.1000862,102650.0,102640.0,1.11984476]
[1734269204300,0.1000862,102650.0,102640.0,1.14243986]
[1734269204928,0.1000862,102650.0,102640.0,1.16173081]
[1734269205565,0.1000862,102650.0,102640.0,1.24916645]
[1734269206206,0.1000862,102650.0,102640.0,1.38031991]
[1734269206629,0.1000862,102650.0,102640.0,1.24916645]
[1734269208516,0.0026662,102650.0,102640.0,1.24916645]
[1734269211125,0.0026662,102650.0,102640.0,1.2490587]
[1734269211339,2e-07,102650.0,102640.0,1.25370328]
[1734269211547,2e-07,102650.0,102640.0,1.427791]
[1734269211756,2e-07,102650.0,102640.0,2.02494744]
[1734269213459,2e-07,102650.0,102640.0,2.04794744]
[1734269214103,0.0001724,102660.0,102650.0,0.343936]
[1734269214104,6e-07,102660.0,102650.0,0.343936]
[1734269214340,6e-07,102660.0,102650.0,0.77866396]
[1734269214553,6e-07,102660.0,102650.0,0.95071799]
[1734269214809,6e-07,102660.0,102650.0,1.37035935]
[1734269215060,6e-07,102660.0,102650.0,0.90965579]
[1734269215502,6e-07,102660.0,102650.0,0.7786479]
[1734269216966,6e-07,102660.0,102650.0,0.92770193]
[1734269217189,6e-07,102660.0,102650.0,1.05861764]
[1734269217393,6e-07,102660.0,102650.0,0.92770193]
[1734269218203,6e-07,102660.0,102650.0,0.87770193]
[1734269218408,6e-07,102660.0,102650.0,0.79042479]
[1734269218611,6e-07,102660.0,102650.0,0.69137076]
[1734269219565,6e-07,102660.0,102650.0,1.22487076]
[1734269219793,6e-07,102660.0,102650.0,1.19983707]
[1734269219997,6e-07,102660.0,102650.0,1.22487076]
[1734269221788,6e-07,102660.0,102650.0,1.37392479]
[1734269223523,6e-07,102660.0,102650.0,1.22487076]
[1734269226528,6e-07,102660.0,102650.0,1.09407076]
[1734269226941,6e-07,102660.0,102650.0,1.08301176]
[1734269227155,6e-07,102660.0,102650.0,1.10797807]
[1734269227585,6e-07,102660.0,102650.0,1.06903707]
[1734269230410,6e-07,102660.0,102650.0,1.06920927]
[1734269232489,6e-07,102660.0,102650.0,0.8285082]
[1734269232722,0.22325463,102660.0,102650.0,0.7285082]
[1734269232921,0.22325463,102660.0,102650.0,0.5336722]
[1734269233131,0.41807163,102660.0,102650.0,0.5336722]
[1734269233337,0.41807163,102660.0,102650.0,0.0001722]
[1734269235709,0.22325463,102660.0,102650.0,0.0001722]
[1734269235918,0.22325463,102660.0,102650.0,0.1950082]
[1734269238927,0.22325463,102660.0,102650.0,0.24598228]
[1734269239147,0.22325463,102660.0,102650.0,0.2450082]
[1734269239351,0.22325463,102660.0,102650.0,0.31347802]
[1734269239553,0.17585463,102660.0,102650.0,0.31347802]
[1734269242578,0.22535463,102660.0,102650.0,0.1950082]
[1734269243871,0.17585463,102660.0,102650.0,0.1950082]
[1734269244101,0.17585463,102660.0,102650.0,0.39598229]
[1734269244301,0.17585463,102660.0,102650.0,0.4450082]
[1734269244505,6e-07,102660.0,102650.0,0.4450082]
[1734269246727,6e-07,102660.0,102650.0,0.9785082]
[1734269249857,6e-07,102660.0,102650.0,1.09228316]
[1734269250557,6e-07,102660.0,102650.0,1.14088316]
[1734269251402,6e-07,102660.0,102650.0,1.1505382]
[1734269253749,6e-07,102660.0,102650.0,1.11656324]
[1734269253958,6e-07,102660.0,102650.0,1.0271082]
[1734269254198,6e-07,102660.0,102650.0,0.9785082]
[1734269262126,6e-07,102660.0,102650.0,1.0037067]
[1734269263838,6e-07,102660.0,102650.0,1.0820067]
[1734269267083,6e-07,102660.0,102650.0,0.9785082]
[1734269277891,6e-07,102660.0,102650.0,1.0548082]
[1734269278521,6e-07,102660.0,102650.0,1.061214]
[1734269278742,6e-07,102660.0,102650.0,1.109014]
[1734269279909,6e-07,102660.0,102650.0,1.22671833]
[1734269280641,6e-07,102660.0,102650.0,1.22680719]
[1734269281831,6e-07,102660.0,102650.0,1.64852281]
[1734269283271,6e-07,102660.0,102650.0,1.82332547]
[1734269283511,6e-07,102660.0,102650.0,1.64852962]
[1734269283736,6e-07,102660.0,102650.0,1.07052967]
[1734269284728,6e-07,102660.0,102650.0,1.14682967]
[1734269284970,6e-07,102660.0,102650.0,1.56952551]
[1734269285171,6e-07,102660.0,102650.0,1.49322551]
[1734269285374,6e-07,102660.0,102650.0,1.49319143]
[1734269286574,6e-07,102660.0,102650.0,1.20168075]
[1734269287347,6e-07,102660.0,102650.0,1.07052967]
[1734269287797,6e-07,102660.0,102650.0,0.98309562]
[1734269289741,6e-07,102660.0,102650.0,1.49400654]
[1734269290952,6e-07,102660.0,102650.0,1.66905188]
[1734269295586,0.09905463,102660.0,102650.0,1.61905188]
[1734269295792,0.22775463,102660.0,102650.0,0.78309562]
[1734269296047,0.22775463,102660.0,102650.0,0.73309562]
[1734269296467,0.31473515,102660.0,102650.0,0.73309562]
[1734269297500,0.31473515,102660.0,102650.0,0.88309562]
[1734269297955,0.31473515,102660.0,102650.0,0.39959562]
[1734269298165,0.22775463,102660.0,102650.0,0.39959562]
[1734269299971,0.22775463,102660.0,102650.0,0.44959562]
[1734269299972,0.18165463,102660.0,102650.0,0.44959562]
[1734269301025,0.18165463,102660.0,102650.0,0.98309562]
[1734269301235,0.18165463,102660.0,102650.0,0.93309562]
[1734269301447,0.19155836,102660.0,102650.0,0.98309562]
[1734269301882,6e-07,102660.0,102650.0,1.01453183]
[1734269302066,6e-07,102660.0,102650.0,1.01154933]